fUST/lending_fUST_20260118
["ID","MTS","AMOUNT","RATE_DAILY","PERIOD"]
[402436733,1768677076902,-636.57,0.0001726,3]
[402436734,1768677076911,-480.06845953,0.0001726,3]
[402436735,1768677076921,-1399.24,0.0001726,3]
[402436736,1768677076929,-1168.23,0.0001726,3]
[402436737,1768677076939,-500.0,0.0001726,3]
[402436738,1768677076948,-1114.84,0.0001726,3]
[402436739,1768677076957,-2897.63,0.0001726,3]
[402436740,1768677076967,-1569.6,0.0001726,3]
[402436741,1768677076975,-597.82,0.0001726,3]
[402436742,1768677076986,-644.89,0.0001726,3]
[402436743,1768677076995,-500.0,0.0001726,3]
[402436744,1768677077004,-500.0,0.0001726,3]
[402436745,1768677077014,-1380.77,0.0001726,3]
[402436746,1768677077025,-539.32,0.0001726,3]
[402436747,1768677077034,-1474.73,0.0001726,3]
[402436748,1768677077044,-500.0,0.0001726,2]
[402436749,1768677077054,-1321.15,0.0001726,3]
[402436750,1768677077064,-500.0,0.0001726,3]
[402436751,1768677077073,-539.86,0.0001726,3]
[402436752,1768677077084,-529.66608909,0.0001726,3]
[402436753,1768677077094,-537.6,0.0001726,3]
[402436754,1768677077103,-500.0,0.0001726,3]
[402436755,1768677077113,-500.0,0.0001726,3]
[402436756,1768677077123,-1249.71,0.0001726,3]
[402436757,1768677077132,-500.0,0.0001726,3]
[402436758,1768677077146,-500.0,0.0001726,3]
[402436759,1768677077155,-14376.21,0.0001726,3]
[402436760,1768677077164,-500.0,0.0001726,3]
[402436761,1768677077174,-1505.84,0.0001726,3]
[402436762,1768677077183,-500.0,0.0001726,2]
[402436763,1768677077192,-500.0,0.0001726,3]
[402436764,1768677077201,-478.36647413,0.0001726,3]
[402436765,1768677077211,-795.91,0.0001726,3]
[402436766,1768677077221,-500.0,0.0001726,2]
[402436767,1768677077230,-800.0,0.00017264,2]
[402436768,1768677077240,-800.0,0.00017289,2]
[402436769,1768677077249,-2930.89982481,0.00017291,2]
[402436770,1768677077264,-498.0,0.00017358,2]
[402436771,1768677077274,-823.0,0.00017362,2]
[402436772,1768677077283,-800.0,0.00017365,2]
[402436773,1768677077292,-5000.0,0.00017412,2]
[402436774,1768677077303,-222.015,0.00017449,2]
[402436775,1768677077312,-200.983,0.00017449,2]
[402436776,1768677077323,-778.0,0.000175,2]
[402436777,1768677077335,-244.191,0.00017531,2]
[402436778,1768677077345,-232.572,0.00017531,2]
[402436779,1768677077354,-250.0,0.00017531,2]
[402436780,1768677077368,-261.666,0.00017531,2]
[402436781,1768677077378,-200.096,0.00017531,2]
[402436782,1768677077387,-267.705,0.00017531,2]
[402436783,1768677077396,-200.38413813,0.00017534,3]
[402436784,1768677077406,-500.0,0.00017534,3]
[402436785,1768677077416,-500.0,0.00017534,3]
[402436786,1768677077425,-500.0,0.00017534,3]
[402436787,1768677077434,-500.0,0.00017534,3]
[402436788,1768677077443,-500.0,0.00017534,3]
[402436789,1768677077451,-500.0,0.00017534,3]
[402436790,1768677077460,-500.0,0.00017534,3]
[402436791,1768677077470,-500.0,0.00017534,3]
[402436792,1768677077479,-500.0,0.00017534,3]
[402436793,1768677077489,-500.0,0.00017534,3]
[402436794,1768677077499,-500.0,0.00017534,3]
[402436795,1768677077508,-500.0,0.00017534,3]
[402436796,1768677077517,-500.0,0.00017534,3]
[402436797,1768677077527,-500.0,0.00017534,3]
[402436798,1768677077536,-819.06,0.00017534,3]
[402436799,1768677077546,-500.0,0.00017534,3]
[402436800,1768677077555,-1100.98,0.00017534,3]
[402436801,1768677077564,-500.0,0.00017534,3]
[402436802,1768677077574,-500.0,0.00017534,3]
[402436803,1768677077583,-379.25255787,0.00017534,3]
[402436804,1768677077593,-1054.14,0.00017534,3]
[402436805,1768677077602,-500.0,0.00017534,3]
[402436806,1768677077612,-500.0,0.00017534,3]
[402436807,1768677077620,-500.0,0.00017534,3]
[402436808,1768677077629,-756.12,0.00017534,3]
[402436809,1768677077637,-500.0,0.00017534,3]
[402436810,1768677077645,-500.0,0.00017534,3]
[402436811,1768677077653,-500.0,0.00017534,3]
[402436812,1768677077661,-953.25120035,0.00017534,2]
[402436813,1768677077670,-654.72,0.00017534,3]
[402436814,1768677077679,-521.93686507,0.00017534,3]
[402436815,1768677077688,-541.19,0.00017534,3]
[402436816,1768677077698,-995.34,0.00017534,3]
[402436817,1768677077706,-500.0,0.00017534,3]
[402436818,1768677077716,-500.0,0.00017534,3]
[402436819,1768677077725,-1414.85,0.00017534,3]
[402436820,1768677077734,-500.0,0.00017534,3]
[402436821,1768677077745,-569.38190569,0.00017534,3]
[402436822,1768677077754,-500.0,0.00017534,3]
[402436823,1768677077763,-500.0,0.00017534,3]
[402436824,1768677077772,-500.0,0.00017534,3]
[402436825,1768677077782,-500.0,0.00017534,3]
[402436826,1768677077791,-500.0,0.00017534,3]
[402436827,1768677077801,-500.0,0.00017534,3]
[402436828,1768677077810,-500.0,0.00017534,3]
[402436829,1768677077820,-500.0,0.00017534,3]
[402436830,1768677077829,-619.42,0.00017534,3]
[402436831,1768677077839,-500.0,0.00017534,3]
[402436832,1768677077848,-500.0,0.00017534,3]
[402436833,1768677077857,-500.0,0.00017534,3]
[402436834,1768677077867,-562.34469649,0.00017534,3]
[402436835,1768677077876,-505.08,0.00017534,3]
[402436836,1768677077885,-500.0,0.00017534,3]
[402436837,1768677077895,-500.0,0.00017534,3]
[402436838,1768677077906,-500.0,0.00017534,3]
[402436839,1768677077916,-530.75,0.00017534,3]
[402436840,1768677077925,-814.58,0.00017534,3]
[402436841,1768677077934,-500.0,0.00017534,3]
[402436842,1768677077944,-1103.53,0.00017534,3]
[402436843,1768677077953,-863.13,0.00017534,3]
[402436844,1768677077963,-500.0,0.00017534,3]
[402436845,1768677077975,-500.0,0.00017534,3]
[402436846,1768677077984,-500.0,0.00017534,3]
[402436847,1768677077993,-500.0,0.00017534,3]
[402436848,1768677078003,-688.71,0.00017534,3]
[402436849,1768677078012,-500.0,0.00017534,3]
[402436850,1768677078022,-653.28,0.00017534,3]
[402436851,1768677078031,-500.0,0.00017534,3]
[402436852,1768677078041,-500.0,0.00017534,3]
[402436853,1768677078050,-526.42,0.00017534,3]
[402436854,1768677078060,-500.0,0.00017534,3]
[402436855,1768677078070,-500.0,0.00017534,3]
[402436856,1768677078080,-821.72,0.00017534,3]
[402436857,1768677078090,-500.0,0.00017534,3]
[402436858,1768677078100,-275.38497984,0.00017534,3]
[402436859,1768677078109,-1355.32,0.00017534,3]
[402436860,1768677078119,-500.0,0.00017534,3]
[402436861,1768677078129,-500.0,0.00017534,3]
[402436862,1768677078139,-526.18,0.00017534,3]
[402436863,1768677078149,-500.0,0.00017534,3]
[402436864,1768677078159,-500.0,0.00017534,3]
[402436865,1768677078168,-859.78,0.00017534,3]
[402436866,1768677078178,-453.08603643,0.00017534,3]
[402436867,1768677078187,-500.0,0.00017534,3]
[402436868,1768677078197,-500.0,0.00017534,3]
[402436869,1768677078207,-500.0,0.00017534,3]
[402436870,1768677078217,-500.0,0.00017534,3]
[402436871,1768677078227,-500.0,0.00017534,3]
[402436872,1768677078239,-500.0,0.00017534,3]
[402436873,1768677078250,-796.76,0.00017534,3]
[402436874,1768677078263,-947.02,0.00017534,3]
[402436875,1768677078273,-500.0,0.00017534,3]
[402436876,1768677078283,-500.0,0.00017534,3]
[402436877,1768677078292,-500.0,0.00017534,3]
[402436878,1768677078303,-1676.18,0.00017534,3]
[402436879,1768677078313,-500.0,0.00017534,3]
[402436880,1768677078323,-500.0,0.00017534,3]
[402436881,1768677078334,-500.0,0.00017534,3]
[402436882,1768677078344,-1422.11,0.00017534,3]
[402436883,1768677078353,-500.0,0.00017534,3]
[402436884,1768677078363,-700.16,0.00017534,3]
[402436885,1768677078372,-1271.86,0.00017534,3]
[402436886,1768677078382,-500.0,0.00017534,3]
[402436887,1768677078392,-500.0,0.00017534,3]
[402436888,1768677078402,-555.26,0.00017534,3]
[402436889,1768677078411,-1185.41,0.00017534,3]
[402436890,1768677078421,-972.25,0.00017534,3]
[402436891,1768677078430,-500.0,0.00017534,3]
[402436892,1768677078440,-500.0,0.00017534,3]
[402436893,1768677078450,-500.0,0.00017534,3]
[402436894,1768677078459,-1029.8,0.00017534,3]
[402436895,1768677078470,-500.0,0.00017534,3]
[402436896,1768677078479,-500.0,0.00017534,3]
[402436897,1768677078489,-500.0,0.00017534,3]
[402436898,1768677078498,-1204.44,0.00017534,3]
[402436899,1768677078508,-500.0,0.00017534,3]
[402436900,1768677078517,-500.0,0.00017534,3]
[402436901,1768677078525,-778.71,0.00017534,3]
[402436902,1768677078534,-1032.1,0.00017534,3]
[402436903,1768677078543,-500.0,0.00017534,3]
[402436904,1768677078553,-500.0,0.00017534,2]
[402436905,1768677078562,-500.0,0.00017534,3]
[402436906,1768677078572,-500.0,0.00017534,3]
[402436907,1768677078581,-500.0,0.00017534,3]
[402436908,1768677078590,-500.0,0.00017534,3]
[402436909,1768677078600,-500.0,0.00017534,3]
[402436910,1768677078610,-862.94,0.00017534,3]
[402436911,1768677078619,-500.0,0.00017534,3]
[402436912,1768677078629,-500.0,0.00017534,3]
[402436913,1768677078640,-500.0,0.00017534,3]
[402436914,1768677078650,-824.42,0.00017534,3]
[402436915,1768677078660,-500.0,0.00017534,3]
[402436916,1768677078671,-972.71,0.00017534,3]
[402436917,1768677078680,-505.28,0.00017534,3]
[402436918,1768677078690,-500.0,0.00017534,3]
[402436919,1768677078700,-500.0,0.00017534,3]
[402436920,1768677078710,-676.38,0.00017534,3]
[402436921,1768677078719,-500.0,0.00017534,3]
[402436922,1768677078728,-500.0,0.00017534,3]
[402436923,1768677078738,-500.0,0.00017534,3]
[402436924,1768677078747,-530.80700199,0.00017534,3]
[402436925,1768677078756,-500.0,0.00017534,3]
[402436926,1768677078766,-718.46,0.00017534,3]
[402436927,1768677078776,-500.0,0.00017534,3]
[402436928,1768677078786,-500.0,0.00017534,3]
[402436929,1768677078795,-795.48,0.00017534,3]
[402436930,1768677078804,-500.0,0.00017534,3]
[402436931,1768677078815,-500.0,0.00017534,3]
[402436932,1768677078825,-1494.36,0.00017534,3]
[402436933,1768677078835,-500.0,0.00017534,3]
[402436934,1768677078845,-527.51,0.00017534,3]
[402436935,1768677078854,-1636.62,0.00017534,3]
[402436936,1768677078864,-500.0,0.00017534,3]
[402436937,1768677078874,-500.0,0.00017534,3]
[402436938,1768677078884,-500.0,0.00017534,3]
[402436939,1768677078896,-955.79,0.00017534,3]
[402436940,1768677078906,-580.87,0.00017534,3]
[402436941,1768677078916,-752.06,0.00017534,3]
[402436942,1768677078926,-364.90375644,0.00017534,3]
[402436943,1768677078936,-500.0,0.00017534,3]
[402436944,1768677078945,-905.51,0.00017534,3]
[402436945,1768677078955,-500.0,0.00017534,3]
[402436946,1768677078966,-1208.54,0.00017534,3]
[402436947,1768677078975,-1438.2,0.00017534,3]
[402436948,1768677078985,-1688.51,0.00017534,3]
[402436949,1768677078996,-500.0,0.00017534,3]
[402436950,1768677079007,-932.73,0.00017534,3]
[402436951,1768677079016,-500.0,0.00017534,3]
[402436952,1768677079026,-500.0,0.00017534,3]
[402436953,1768677079036,-706.53,0.00017534,3]
[402436954,1768677079045,-947.08,0.00017534,3]
[402436955,1768677079055,-1057.27,0.00017534,3]
[402436956,1768677079064,-2004.45,0.00017534,3]
[402436957,1768677079074,-500.0,0.00017534,3]
[402436958,1768677079084,-500.0,0.00017534,3]
[402436959,1768677079094,-688.08,0.00017534,3]
[402436960,1768677079103,-500.0,0.00017534,3]
[402436961,1768677079112,-500.0,0.00017534,3]
[402436962,1768677079121,-500.0,0.00017534,3]
[402436963,1768677079131,-648.33,0.00017534,3]
[402436964,1768677079141,-500.0,0.00017534,3]
[402436965,1768677079150,-1181.35,0.00017534,3]
[402436966,1768677079160,-500.0,0.00017534,3]
[402436967,1768677079170,-500.0,0.00017534,3]
[402436968,1768677079180,-500.0,0.00017534,3]
[402436969,1768677079190,-500.0,0.00017534,3]
[402436970,1768677079201,-950.08,0.00017534,3]
[402436971,1768677079212,-500.0,0.00017534,3]
[402436972,1768677079223,-500.0,0.00017534,3]
[402436973,1768677079233,-500.0,0.00017534,3]
[402436974,1768677079243,-359.73801273,0.00017534,3]
[402436975,1768677079255,-1477.98,0.00017534,3]
[402436976,1768677079270,-1122.16,0.00017534,3]
[402436977,1768677079281,-1022.4,0.00017534,3]
[402436978,1768677079290,-500.0,0.00017534,3]
[402436979,1768677079300,-271.88452189,0.00017534,3]
[402436980,1768677079312,-500.0,0.00017534,3]
[402436981,1768677079322,-500.0,0.00017534,3]
[402436982,1768677079332,-500.0,0.00017534,3]
[402436983,1768677079343,-500.0,0.00017534,3]
[402436984,1768677079353,-1748.87,0.00017534,3]
[402436985,1768677079362,-506.9,0.00017534,3]
[402436986,1768677079373,-500.0,0.00017534,3]
[402436987,1768677079385,-634.5,0.00017534,3]
[402436988,1768677079396,-1501.65,0.00017534,3]
[402436989,1768677079405,-966.6,0.00017534,3]
[402436990,1768677079416,-1015.88,0.00017534,3]
[402436991,1768677079426,-500.0,0.00017534,3]
[402436992,1768677079438,-284.7821744,0.00017534,3]
[402436993,1768677079449,-531.86,0.00017534,3]
[402436994,1768677079460,-500.0,0.00017534,3]
[402436995,1768677079472,-500.0,0.00017534,3]
[402436996,1768677079482,-770.84,0.00017534,3]
[402436997,1768677079491,-1392.58,0.00017534,3]
[402436998,1768677079501,-528.91250035,0.00017534,3]
[402436999,1768677079511,-500.0,0.00017534,3]
[402437000,1768677079521,-500.0,0.00017534,3]
[402437001,1768677079531,-530.24218336,0.00017534,3]
[402437002,1768677079541,-1290.77,0.00017534,3]
[402437003,1768677079551,-500.0,0.00017534,3]
[402437004,1768677079562,-500.0,0.00017534,3]
[402437005,1768677079572,-500.0,0.00017534,3]
[402437006,1768677079583,-1293.8,0.00017534,3]
[402437007,1768677079594,-1240.0,0.00017534,3]
[402437008,1768677079604,-500.0,0.00017534,3]
[402437009,1768677079614,-500.0,0.00017534,3]
[402437010,1768677079625,-942.26,0.00017534,3]
[402437011,1768677079635,-500.0,0.00017534,3]
[402437012,1768677079646,-680.81,0.00017534,3]
[402437013,1768677079657,-863.4,0.00017534,3]
[402437014,1768677079668,-500.0,0.00017534,3]
[402437015,1768677079678,-500.0,0.00017534,3]
[402437016,1768677079688,-500.0,0.00017534,3]
[402437017,1768677079698,-500.0,0.00017534,3]
[402437018,1768677079708,-860.12,0.00017534,3]
[402437019,1768677079720,-500.0,0.00017534,3]
[402437020,1768677079731,-1611.57,0.00017534,3]
[402437021,1768677079741,-500.0,0.00017534,3]
[402437022,1768677079751,-882.95,0.00017534,3]
[402437023,1768677079760,-729.29,0.00017534,3]
[402437024,1768677079770,-500.0,0.00017534,3]
[402437025,1768677079780,-500.0,0.00017534,3]
[402437026,1768677079789,-500.0,0.00017534,3]
[402437027,1768677079800,-1300.92,0.00017534,3]
[402437028,1768677079811,-500.0,0.00017534,3]
[402437029,1768677079821,-500.0,0.00017534,3]
[402437030,1768677079832,-500.0,0.00017534,3]
[402437031,1768677079843,-500.0,0.00017534,3]
[402437032,1768677079854,-917.63,0.00017534,3]
[402437033,1768677079865,-500.0,0.00017534,3]
[402437034,1768677079875,-1000.0,0.00017534,2]
[402437035,1768677079885,-500.0,0.00017534,3]
[402437036,1768677079895,-1231.73,0.00017534,3]
[402437037,1768677079905,-500.0,0.00017534,3]
[402437038,1768677079915,-547.52,0.00017534,3]
[402437039,1768677079926,-500.0,0.00017534,3]
[402437040,1768677079937,-821.19,0.00017534,3]
[402437041,1768677079947,-500.0,0.00017534,3]
[402437042,1768677079959,-500.0,0.00017534,3]
[402437043,1768677079969,-500.0,0.00017534,3]
[402437044,1768677079979,-1266.79,0.00017534,3]
[402437045,1768677079989,-520.45,0.00017534,3]
[402437046,1768677079998,-522.28,0.00017534,3]
[402437047,1768677080009,-610.79,0.00017534,3]
[402437048,1768677080018,-654.08,0.00017534,3]
[402437049,1768677080028,-500.0,0.00017534,3]
[402437050,1768677080038,-571.51,0.00017534,3]
[402437051,1768677080049,-500.0,0.00017534,3]
[402437052,1768677080061,-500.0,0.00017534,3]
[402437053,1768677080072,-500.0,0.00017534,3]
[402437054,1768677080082,-500.0,0.00017534,3]
[402437055,1768677080093,-768.76,0.00017534,3]
[402437056,1768677080103,-500.0,0.00017534,3]
[402437057,1768677080113,-788.51,0.00017534,3]
[402437058,1768677080130,-500.0,0.00017534,3]
[402437059,1768677080386,-500.0,0.00017534,3]
[402437060,1768677080397,-500.0,0.00017534,3]
[402437061,1768677080407,-500.0,0.00017534,3]
[402437062,1768677080416,-500.0,0.00017534,3]
[402437063,1768677080426,-532.99,0.00017534,3]
[402437064,1768677080435,-500.0,0.00017534,3]
[402437065,1768677080445,-456.1033492,0.00017534,2]
[402437066,1768677080454,-500.0,0.00017534,3]
[402437067,1768677080464,-500.0,0.00017534,3]
[402437068,1768677080473,-500.0,0.00017534,3]
[402437069,1768677080485,-500.0,0.00017534,3]
[402437070,1768677080494,-609.57,0.00017534,3]
[402437071,1768677080503,-500.0,0.00017534,3]
[402437072,1768677080512,-982.5,0.00017534,3]
[402437073,1768677080521,-500.0,0.00017534,3]
[402437074,1768677080531,-711.95,0.00017534,3]
[402437075,1768677080541,-500.0,0.00017534,3]
[402437076,1768677080550,-500.0,0.00017534,3]
[402437077,1768677080559,-1220.69,0.00017534,3]
[402437078,1768677080568,-524.68,0.00017534,3]
[402437079,1768677080578,-500.0,0.00017534,3]
[402437080,1768677080587,-500.0,0.00017534,3]
[402437081,1768677080596,-1421.24,0.00017534,3]
[402437082,1768677080606,-500.0,0.00017534,3]
[402437083,1768677080615,-500.0,0.00017534,3]
[402437084,1768677080625,-227.93902115,0.00017534,3]
[402437085,1768677080634,-698.89,0.00017534,3]
[402437086,1768677080644,-521.62,0.00017534,3]
[402437087,1768677080653,-500.0,0.00017534,3]
[402437088,1768677080662,-500.0,0.00017534,3]
[402437089,1768677080672,-500.0,0.00017534,3]
[402437090,1768677080682,-1628.67,0.00017534,3]
[402437091,1768677080691,-714.42,0.00017534,3]
[402437092,1768677080701,-500.0,0.00017534,3]
[402437093,1768677080711,-500.0,0.00017534,3]
[402437094,1768677080720,-769.6,0.00017534,3]
[402437095,1768677080729,-500.0,0.00017534,3]
[402437096,1768677080739,-882.36,0.00017534,3]
[402437097,1768677080749,-937.01,0.00017534,3]
[402437098,1768677080758,-1071.96,0.00017534,3]
[402437099,1768677080768,-2532.74,0.00017534,3]
[402437100,1768677080777,-500.0,0.00017534,3]
[402437101,1768677080786,-608.0,0.00017534,3]
[402437102,1768677080796,-945.0,0.00017534,3]
[402437103,1768677080805,-500.0,0.00017534,3]
[402437104,1768677080815,-500.0,0.00017534,3]
[402437105,1768677080824,-500.0,0.00017534,3]
[402437106,1768677080834,-500.0,0.00017534,3]
[402437107,1768677080844,-500.0,0.00017534,3]
[402437108,1768677080853,-724.98,0.00017534,3]
[402437109,1768677080862,-500.0,0.00017534,3]
[402437110,1768677080876,-500.0,0.00017534,3]
[402437111,1768677080891,-500.0,0.00017534,3]
[402437112,1768677080901,-1226.14,0.00017534,3]
[402437113,1768677080911,-500.0,0.00017534,3]
[402437114,1768677080921,-1192.38,0.00017534,3]
[402437115,1768677080930,-500.0,0.00017534,3]
[402437116,1768677080941,-1440.02,0.00017534,3]
[402437117,1768677080950,-500.0,0.00017534,3]
[402437118,1768677080960,-500.0,0.00017534,3]
[402437119,1768677080970,-500.0,0.00017534,3]
[402437120,1768677080980,-526.57336217,0.00017534,3]
[402437121,1768677080990,-563.95,0.00017534,3]
[402437122,1768677081000,-500.0,0.00017534,3]
[402437123,1768677081011,-888.73,0.00017534,3]
[402437124,1768677081021,-1322.85,0.00017534,3]
[402437125,1768677081030,-500.0,0.00017534,3]
[402437126,1768677081041,-577.24,0.00017534,3]
[402437127,1768677081051,-500.0,0.00017534,3]
[402437128,1768677081060,-500.0,0.00017534,3]
[402437129,1768677081072,-593.62,0.00017534,3]
[402437130,1768677081083,-558.99,0.00017534,3]
[402437131,1768677081092,-500.0,0.00017534,3]
[402437132,1768677081102,-500.0,0.00017534,3]
[402437133,1768677081111,-943.41,0.00017534,3]
[402437134,1768677081121,-507.13,0.00017534,3]
[402437135,1768677081131,-500.0,0.00017534,3]
[402437136,1768677081141,-878.96,0.00017534,3]
[402437137,1768677081151,-500.0,0.00017534,3]
[402437138,1768677081161,-500.0,0.00017534,3]
[402437139,1768677081172,-595.67,0.00017534,3]
[402437140,1768677081182,-500.0,0.00017534,3]
[402437141,1768677081193,-500.0,0.00017534,3]
[402437142,1768677081203,-960.34,0.00017534,3]
[402437143,1768677081214,-500.0,0.00017534,3]
[402437144,1768677081224,-764.35,0.00017534,3]
[402437145,1768677081234,-500.0,0.00017534,3]
[402437146,1768677081244,-500.0,0.00017534,3]
[402437147,1768677081257,-1333.16,0.00017534,3]
[402437148,1768677081269,-500.0,0.00017534,3]
[402437149,1768677081279,-500.0,0.00017534,3]
[402437150,1768677081288,-500.0,0.00017534,3]
[402437151,1768677081299,-1834.32,0.00017534,3]
[402437152,1768677081309,-1717.69,0.00017534,3]
[402437153,1768677081319,-554.51009114,0.00017534,3]
[402437154,1768677081329,-968.64,0.00017534,3]
[402437155,1768677081340,-1272.0,0.00017534,3]
[402437156,1768677081350,-500.0,0.00017534,3]
[402437157,1768677081359,-500.0,0.00017534,3]
[402437158,1768677081368,-611.98339815,0.00017534,3]
[402437159,1768677081377,-1630.85,0.00017534,3]
[402437160,1768677081390,-1384.14,0.00017534,3]
[402437161,1768677081400,-680.46,0.00017534,3]
[402437162,1768677081409,-195.7,0.00017534,2]
[402437163,1768677081419,-500.0,0.00017534,3]
[402437164,1768677081428,-668.86,0.00017534,3]
[402437165,1768677081438,-500.0,0.00017534,3]
[402437166,1768677081448,-500.0,0.00017534,3]
[402437167,1768677081458,-500.0,0.00017534,3]
[402437168,1768677081469,-500.0,0.00017534,3]
[402437169,1768677081479,-500.0,0.00017534,3]
[402437170,1768677081489,-1316.96,0.00017534,3]
[402437171,1768677081499,-500.0,0.00017534,3]
[402437172,1768677081508,-500.0,0.00017534,3]
[402437173,1768677081518,-500.0,0.00017534,3]
[402437174,1768677081527,-500.0,0.00017534,3]
[402437175,1768677081537,-706.96,0.00017534,3]
[402437176,1768677081548,-500.0,0.00017534,3]
[402437177,1768677081558,-500.0,0.00017534,3]
[402437178,1768677081567,-500.0,0.00017534,3]
[402437179,1768677081577,-500.0,0.00017534,3]
[402437180,1768677081587,-541.3847786,0.00017534,3]
[402437181,1768677081596,-1200.0,0.00017534,2]
[402437182,1768677081606,-895.54,0.00017534,3]
[402437183,1768677081616,-693.13,0.00017534,3]
[402437184,1768677081626,-1368.68,0.00017534,3]
[402437185,1768677081635,-500.0,0.00017534,3]
[402437186,1768677081645,-500.0,0.00017534,3]
[402437187,1768677081655,-1071.26,0.00017534,3]
[402437188,1768677081664,-854.25,0.00017534,3]
[402437189,1768677081674,-822.61,0.00017534,3]
[402437190,1768677081683,-500.0,0.00017534,3]
[402437191,1768677081693,-1040.52,0.00017534,3]
[402437192,1768677081702,-500.0,0.00017534,3]
[402437193,1768677081713,-500.0,0.00017534,3]
[402437194,1768677081725,-1915.54,0.00017534,3]
[402437195,1768677081734,-591.65,0.00017534,3]
[402437196,1768677081744,-1390.83,0.00017534,3]
[402437197,1768677081754,-500.0,0.00017534,3]
[402437198,1768677081764,-500.0,0.00017534,3]
[402437199,1768677081774,-500.0,0.00017534,3]
[402437200,1768677081784,-1757.22,0.00017534,3]
[402437201,1768677081794,-500.0,0.00017534,3]
[402437202,1768677081804,-500.0,0.00017534,3]
[402437203,1768677081813,-500.0,0.00017534,3]
[402437204,1768677081823,-500.0,0.00017534,3]
[402437205,1768677081833,-838.7,0.00017534,3]
[402437206,1768677081843,-500.0,0.00017534,3]
[402437207,1768677081852,-500.0,0.00017534,3]
[402437208,1768677081862,-777.41,0.00017534,3]
[402437209,1768677081872,-1043.16,0.00017534,3]
[402437210,1768677081881,-500.0,0.00017534,3]
[402437211,1768677081891,-1407.98,0.00017534,3]
[402437212,1768677081901,-505.87,0.00017534,3]
[402437213,1768677081911,-500.0,0.00017534,3]
[402437214,1768677081921,-500.0,0.00017534,3]
[402437215,1768677081930,-500.0,0.00017534,3]
[402437216,1768677081940,-500.0,0.00017534,3]
[402437217,1768677081950,-739.58,0.00017534,3]
[402437218,1768677081959,-856.56,0.00017534,3]
[402437219,1768677081968,-500.0,0.00017534,3]
[402437220,1768677081978,-489.41292271,0.00017534,3]
[402437221,1768677081987,-500.0,0.00017534,3]
[402437222,1768677081997,-1416.3,0.00017534,3]
[402437223,1768677082007,-500.0,0.00017534,3]
[402437224,1768677082017,-500.0,0.00017534,3]
[402437225,1768677082027,-500.0,0.00017534,3]
[402437226,1768677082036,-500.0,0.00017534,3]
[402437227,1768677082045,-1545.1,0.00017534,3]
[402437228,1768677082055,-500.0,0.00017534,3]
[402437229,1768677082065,-513.29,0.00017534,3]
[402437230,1768677082075,-500.0,0.00017534,3]
[402437231,1768677082086,-1494.01,0.00017534,3]
[402437232,1768677082096,-1051.96,0.00017534,3]